Workbook

Sheet MSU
B1: Tero Majuri | E1: 5.3.1972
B2: SUPERPESIS | E2: Runkosarja | I2: Kärkilyönnit (KL), pesänvälit | P2: Ylempi loppusarja | W2: Alempi loppusarja | AD2: Arvo-ottelut | AH2: Mitalit
B3: Vuosi | C3: Sija | D3: Seura | E3: OTT | F3: KUN | G3: LÖI | H3: TOI | I3: KL | J3: 0 > 1 | K3: 1 > 2 | L3: 2 > 3 | M3: 3 > k | N3: KL-% | P3: OTT | Q3: KUN | R3: LÖI | S3: TOI | T3: KL | U3: KL-% | W3: OTT | X3: KUN | Y3: LÖI | Z3: TOI | AA3: KL | AB3: KL-% | AD3: IL | AE3: LL | AF3: hSM | AG3: K | AH3: H | AI3: P
B4: 1999 | C4: 4. | D4: Valo | F4: suomensarja
B5: 2000 | C5: 9. | D5: Kiri | E5: 10 | F5: 1 | G5: 0 | H5: 1 | I5: 21 | J5: 17 | K5: 1 | L5: 2 | M5: 1 | N5: 40.4 %
B6: 2001 | C6: 4. | D6: Valo | F6: suomensarja
B7: 2002 | C7: 3. | D7: Valo | F7: suomensarja
B8: ****
B9: 2007 | C9: 2. | D9: LieKi | F9: suomensarja
B10: ****
B11: 2013 | C11: 3. | D11: LieKi | F11: suomensarja
B12: Yhteensä | E12: 10 | F12: 1 | G12: 0 | H12: 1 | I12: 21 | J12: 17 | K12: 1 | L12: 2 | M12: 1 | N12: 40.4 % | O12: 34.04255319 | P12: 0 | Q12: 0 | R12: 0 | S12: 0 | T12: 0 | U12: 0.0 % | W12: 0 | X12: 0 | Y12: 0 | Z12: 0 | AA12: 0 | AB12: 0.0 % | AD12: 0 | AE12: 0 | AF12: 0 | AG12: 0 | AH12: 0 | AI12: 0
B13: Pesispörssi | D13: 12.0
B15: URA SUPERISSA | E15: OTT | F15: KUN | G15: LÖI | H15: TOI | I15: KL | K15: ka/L | L15: ka/T | M15: ka/KL | N15: KL-% | P15: ENSIMMÄISET RUNKOSARJASSA
B16: Runkosarja | E16: 10 | F16: 1 | G16: 0 | H16: 1 | I16: 21 | K16: 0.10 | L16: 0.10 | M16: 2.10 | N16: 40.4 % | O16: 34.04255319 | P16: Ottelu | R16: 25.05. 2000 Kiri - Lippo 0-2 (0-4, 0-3) | Z16: 1. ottelu | AB16: 28 v 2 kk 20 pv
B17: Ylempi loppusarja | P17: Lyöty | R17: 18.06. 2000 Kiri - PattU 0-2 (3-6, 2-9) | Z17: 9. ottelu | AB17: 28 v 3 kk 13 pv
B18: Alempi loppusarja | P18: Tuotu | R18: 18.06. 2000 Kiri - PattU 0-2 (3-6, 2-9) | Z18: 9. ottelu | AB18: 28 v 3 kk 13 pv
B19: KAIKKI | E19: 10 | F19: 1 | G19: 0 | H19: 1 | I19: 21 | K19: 0.10 | L19: 0.10 | M19: 2.10 | N19: 40.4 % | O19: 34.04255319 | P19: Kunnari | R19: 18.06. 2000 Kiri - PattU 0-2 (3-6, 2-9) | Z19: 9. ottelu | AB19: 28 v 3 kk 13 pv
B21: Seurat | D21: Valo = Jyväskylän Valo (1948)
D22: Kiri = Jyväskylän Kiri (1930)
D23: LieKi = Lievestuoreen Kisa (1927)

Sheet MSS
B1: Tero Majuri | E1: 5.3.1972
B2: YKKÖSPESIS | E2: Runkosarja | L2: Runkosarja TOP-10 | Q2: Jatkosarjat | X2: SUOMENSARJA | AA2: Runkosarja | AH2: Runkosarja TOP-10 | AM2: Jatkosarjat
B3: Vuosi | C3: Sija | D3: Seura | E3: OTT | F3: KUN | G3: LÖI | H3: TOI | I3: KL | J3: KL-% | L3: LÖI | M3: TOI | N3: L+T | O3: KL | Q3: OTT | R3: KUN | S3: LÖI | T3: TOI | U3: KL | V3: KL-% | X3: Vuosi | Y3: Sija | Z3: Seura | AA3: OTT | AB3: KUN | AC3: LÖI | AD3: TOI | AE3: KL | AF3: KL-% | AH3: LÖI | AI3: TOI | AJ3: L+T | AK3: KL | AM3: OTT | AN3: KUN | AO3: LÖI | AP3: TOI | AQ3: KL | AR3: KL-%
X4: 2001 | Y4: 4. | Z4: Valo | AA4: 18 | AB4: 3 | AC4: 50 | AD4: 9 | AE4: 92 | AF4: 59.4 % | AG4: 155 | AH4: 1. | AJ4: 3. | AK4: 9. | AM4: 2 | AN4: 0 | AO4: 0 | AP4: 0 | AQ4: 3 | AR4: 23.1 % | AS4: 13
X5: 2002 | Y5: 3. | Z5: Valo | AA5: 15 | AB5: 2 | AC5: 21 | AD5: 10 | AE5: 71 | AF5: 58.7 % | AG5: 121 | AM5: 3 | AN5: 1 | AO5: 4 | AP5: 1 | AQ5: 19 | AR5: 57.6 % | AS5: 33
X7: 2007 | Y7: 2. | Z7: LieKi | AA7: 14 | AB7: 0 | AC7: 4 | AD7: 4 | AE7: 33 | AF7: 43.4 % | AG7: 76 | AM7: 5 | AN7: 0 | AO7: 2 | AP7: 0 | AQ7: 16 | AR7: 55.2 % | AS7: 29
X9: 2013 | Y9: 3. | Z9: LieKi | AA9: 7 | AB9: 0 | AC9: 6 | AD9: 0 | AE9: 19 | AF9: 67.9 % | AG9: 28
B10: YHTEENSÄ | E10: =SUM(E4:E9) -> 0 | F10: =SUM(F4:F9) -> 0 | G10: =SUM(G4:G9) -> 0 | H10: =SUM(H4:H9) -> 0 | I10: =SUM(I4:I9) -> 0 | J10: 0.0 % | K10: =SUM(K4:K9) -> 0 | Q10: =SUM(Q4:Q9) -> 0 | R10: =SUM(R4:R9) -> 0 | S10: =SUM(S4:S9) -> 0 | T10: =SUM(T4:T9) -> 0 | U10: =SUM(U4:U9) -> 0 | V10: 0.0 % | W10: =SUM(W4:W9) -> 0 | X10: YHTEENSÄ | AA10: =SUM(AA4:AA9) -> 54 | AB10: =SUM(AB4:AB9) -> 5 | AC10: =SUM(AC4:AC9) -> 81 | AD10: =SUM(AD4:AD9) -> 23 | AE10: =SUM(AE4:AE9) -> 215 | AF10: =PRODUCT(AE10/AG10) -> 56.6 % | AG10: =SUM(AG4:AG9) -> 380 | AM10: =SUM(AM4:AM9) -> 10 | AN10: =SUM(AN4:AN9) -> 1 | AO10: =SUM(AO4:AO9) -> 6 | AP10: =SUM(AP4:AP9) -> 1 | AQ10: =SUM(AQ4:AQ9) -> 38 | AR10: =PRODUCT(AQ10/AS10) -> 50.7 % | AS10: =SUM(AS4:AS9) -> 75
B12: KAIKKI OTTELUT | E12: OTT | F12: KUN | G12: LÖI | H12: TOI | I12: KL | J12: KL-% | L12: ka/L | M12: ka/T | N12: ka/l+t | O12: ka/kl | R12: Seurat | T12: Valo = Jyväskylän Valo (1948)
B13: SUPERPESIS | E13: 10 | F13: 1 | G13: 0 | H13: 1 | I13: 21 | J13: 40.4 % | K13: =PRODUCT(I13/J13) -> 51.98019802 | L13: =PRODUCT((F13+G13)/E13) -> 0.10 | M13: =PRODUCT(H13/E13) -> 0.10 | N13: =PRODUCT((F13+G13+H13)/E13) -> 0.20 | O13: =PRODUCT(I13/E13) -> 2.10 | T13: Kiri = Jyväskylän Kiri (1930)
B14: YKKÖSPESIS | E14: =PRODUCT(E10+Q10) -> 0 | F14: =PRODUCT(F10+R10) -> 0 | G14: =PRODUCT(G10+S10) -> 0 | H14: =PRODUCT(H10+T10) -> 0 | I14: =PRODUCT(I10+U10) -> 0 | J14: 0.0 % | K14: =PRODUCT(K10+W10) -> 0 | L14: 0.00 | M14: 0.00 | N14: 0.00 | O14: 0.00 | T14: LieKi = Lievestuoreen Kisa (1927)
B15: SUOMENSARJA | E15: =PRODUCT(AA10+AM10) -> 64 | F15: =PRODUCT(AB10+AN10) -> 6 | G15: =PRODUCT(AC10+AO10) -> 87 | H15: =PRODUCT(AD10+AP10) -> 24 | I15: =PRODUCT(AE10+AQ10) -> 253 | J15: =PRODUCT(I15/K15) -> 55.6 % | K15: =PRODUCT(AG10+AS10) -> 455 | L15: =PRODUCT((F15+G15)/E15) -> 1.45 | M15: =PRODUCT(H15/E15) -> 0.38 | N15: =PRODUCT((F15+G15+H15)/E15) -> 1.83 | O15: =PRODUCT(I15/E15) -> 3.95
B16: YHTEENSÄ | E16: =SUM(E13:E15) -> 74 | F16: =SUM(F13:F15) -> 7 | G16: 87 | H16: 25 | I16: 274 | J16: =PRODUCT(I16/K16) -> 54.0 % | K16: =SUM(K13:K15) -> 506.980198 | L16: =PRODUCT((F16+G16)/E16) -> 1.27 | M16: =PRODUCT(H16/E16) -> 0.34 | N16: =PRODUCT((F16+G16+H16)/E16) -> 1.61 | O16: =PRODUCT(I16/E16) -> 3.70
